Workbook

Sheet Sheet1
A2: Contractor Tree Work 2014
A4: Tree Size | B4: Actual Cost | C4: Date | E4: Cost | F4: Schedule | I4: Trimming $120/Hr.
A5: 18" | B5: 450.00 | C5: 2015-02-05 | E5: 350-450 | F5: 16"-24" | I5: Cost | J5: Hours | K5: Date
A6: 27" | B6: 950.00 | C6: 2015-02-05 | E6: 700-950 | F6: 25"-36" | I6: 700.00 | J6: 5.83 | K6: 2015-02-21
A7: 29" | B7: 950.00 | C7: 2015-02-05 | E7: 700-950 | F7: 25"-36" | I7: 450.00 | J7: 3.75 | K7: 2015-03-04
A8: 20" | B8: 450.00 | C8: 2015-02-05 | E8: 350-450 | F8: 16"-24" | I8: 300.00 | J8: 2.50 | K8: 2015-05-14
A9: 24" | B9: 450.00 | C9: 2015-02-05 | E9: 350-450 | F9: 16"-24" | I9: 200.00 | J9: 1.67 | K9: 2015-05-20
A10: 26" | B10: 950.00 | C10: 2015-02-25 | E10: 700-950 | F10: 25"-36" | I10: 425.00 | J10: 3.54 | K10: 2015-07-23
A11: 33" | B11: 950.00 | C11: 2015-03-04 | E11: 700-950 | F11: 25"-36" | I11: 400.00 | J11: 3.33 | K11: 2015-08-05
A12: 50" | B12: 2350.00 | C12: 2015-04-09 | E12: 1900-2350 | F12: 49"-60" | I12: 600.00 | J12: 5.00 | K12: 2015-08-05
A13: 31" | B13: 950.00 | C13: 2015-04-09 | E13: 700-950 | F13: 25"-36" | I13: 300.00 | J13: 2.50 | K13: 2015-09-30
A14: 24" | B14: 450.00 | C14: 2015-04-25 | E14: 350-450 | F14: 16"-24" | I14: 2800.00 | J14: 23.33 | K14: 2015-12-01
A15: 25" | B15: 450.00 | C15: 2015-05-07 | E15: 700-950 | F15: 25"-36" | I15: 250.00 | J15: 2.08 | K15: 2015-12-09
A16: 20" | B16: 1000.00 | C16: 2015-05-14 | E16: 350-450 | F16: 16"-24" | G16: E | H16: Total | I16: =SUM(I6:I15) -> 6425.00 | J16: =SUM(J6:J15) -> 53.53
A17: 36" | B17: 950.00 | C17: 2015-06-24 | E17: 700-950 | F17: 25"-36"
A18: 33" | B18: 950.00 | C18: 2015-06-24 | E18: 700-950 | F18: 25"-36"
A19: 32" | B19: 950.00 | C19: 2015-06-24 | E19: 700-950 | F19: 25"-36"
A20: 20" | B20: 450.00 | C20: 2015-06-24 | E20: 350-450 | F20: 16"-24"
A21: 43" | B21: 1875.00 | C21: 2015-06-24 | E21: 1500-1875 | F21: 37"-48" | I21: Extra Costs | K21: Date
A22: 20" | B22: 450.00 | C22: 2015-07-23 | E22: 350-450 | F22: 16"-24" | I22: 2437.00 | J22: crane | K22: 2015-07-30
A23: 28" | B23: 950.00 | C23: 2015-07-23 | E23: 700-950 | F23: 25"-36" | I23: 2437.00 | J23: crane | K23: 2015-12-01
A24: 42" | B24: 1875.00 | C24: 2015-07-23 | E24: 1500-1875 | F24: 37"-48" | H24: Total | I24: =SUM(I22:I23) -> 4874.00
A25: 49" | B25: 2350.00 | C25: 2015-07-30 | E25: 1900-2350 | F25: 49"-60"
A26: 62" | B26: 3100.00 | C26: 2015-08-15 | E26: 3000-3600 | F26: 61"-72"
A27: 50" | B27: 2350.00 | C27: 2015-08-26 | E27: 1900-2350 | F27: 49"-60" | I27: Number of Trees
A28: 27" | B28: 950.00 | C28: 2015-08-26 | E28: 700-950 | F28: 25"-36" | I28: 0 | J28: 15" and Under
A29: 26" | B29: 950.00 | C29: 2015-08-26 | E29: 700-950 | F29: 25"-36" | I29: 10 | J29: 16"-24"
A30: 16" | B30: 450.00 | C30: 2015-09-11 | E30: 350-450 | F30: 16"-24" | I30: 23 | J30: 25"-36"
A31: 28" | B31: 950.00 | C31: 2015-09-11 | E31: 700-950 | F31: 25"-36" | I31: 8 | J31: 37"-48"
A32: 30" | B32: 950.00 | C32: 2015-09-11 | E32: 700-950 | F32: 25"-36" | I32: 5 | J32: 49"-60"
A33: 41" | B33: 1875.00 | C33: 2015-09-11 | E33: 1500-1875 | F33: 37"-48" | I33: 1 | J33: 61"-72"
A34: 31" | B34: 950.00 | C34: 2015-09-11 | E34: 700-950 | F34: 25"-36" | H34: Total | I34: =SUM(I28:I33) -> 47
A35: 40" | B35: 1875.00 | C35: 2015-09-17 | E35: 1500-1875 | F35: 37"-48"
A36: 52" | B36: 2350.00 | C36: 2015-10-01 | E36: 1900-2350 | F36: 49"-60"
A37: 38" | B37: 1875.00 | C37: 2015-10-01 | E37: 1500-1875 | F37: 37"-48"
A38: 40" | B38: 1875.00 | C38: 2015-10-01 | E38: 1500-1875 | F38: 37"-48"
A39: 42" | B39: 1875.00 | C39: 2015-11-20 | E39: 1500-1875 | F39: 37"-48"
A40: 30"&22" | B40: 2700.00 | C40: 2015-12-01 | E40: 350-450 700-950 | F40: 16"-24" 25"-36"
A41: 29" | B41: 950.00 | C41: 2015-12-01 | E41: 700-950 | F41: 25"-36"
A42: 27" | B42: 950.00 | C42: 2015-12-01 | E42: 700-950 | F42: 25"-36"
A43: 18" | B43: 450.00 | C43: 2015-12-03 | E43: 350-450 | F43: 16"-24"
A44: 41" | B44: 1875.00 | C44: 2015-12-03 | E44: 1500-1875 | F44: 37"-48"
A45: 36" | B45: 950.00 | C45: 2015-12-04 | E45: 700-950 | F45: 25"-36"
A46: 27" | B46: 950.00 | C46: 2015-12-09 | E46: 700-950 | F46: 25"-36"
A47: 31" | B47: 950.00 | C47: 2015-12-09 | E47: 700-950 | F47: 25"-36"
A48: 29" | B48: 950.00 | C48: 2015-12-11 | E48: 700-950 | F48: 25"-36"
A49: 27" | B49: 950.00 | C49: 2015-12-11 | E49: 700-950 | F49: 25"-36"
A50: 51" | B50: 3850.00 | C50: 2015-12-12 | E50: 1900-2350 | F50: 49"-60"
A51: Total | B51: =SUM(B5:B50) -> 59050.00
B53: E = Emergency

Sheet Sheet2
A1: 2015 Tree Contract Bid Analysis
B2: Old Contract | H2: KDM | I2: Southern Pride | J2: Tatum | Q2: KDM | R2: Southern Pride | S2: Tatum
A3: Tree Size | B3: Actual Cost | C3: Date | E3: Cost | F3: Schedule | H3: Bid Rates 2015 | M3: Trimming $120/Hr. | Q3: $124.50 | R3: $120.00 | S3: $110.00
A4: 18" | B4: $450.00 | C4: 2015-02-05 | E4: 350-450 | F4: 16"-24" | H4: $427.50 | I4: $450.00 | J4: $475.00 | M4: Cost | N4: Hours | O4: Date | Q4: Cost
A5: 27" | B5: $950.00 | C5: 2015-02-05 | E5: 700-950 | F5: 25"-36" | H5: $902.50 | I5: $950.00 | J5: $1,000.00 | M5: 700.00 | N5: 5.83 | O5: 2015-02-21 | Q5: =N5*Q3 -> $725.84 | R5: =R3*N5 -> $699.60 | S5: =S3*N5 -> $641.30
A6: 29" | B6: $950.00 | C6: 2015-02-05 | E6: 700-950 | F6: 25"-36" | H6: $902.50 | I6: $950.00 | J6: $1,000.00 | M6: 450.00 | N6: 3.75 | O6: 2015-03-04 | Q6: =Q3*N6 -> $466.88 | R6: =R3*N6 -> $450.00 | S6: =S3*N6 -> $412.50
A7: 20" | B7: $450.00 | C7: 2015-02-05 | E7: 350-450 | F7: 16"-24" | H7: $427.50 | I7: $450.00 | J7: $475.00 | M7: 300.00 | N7: 2.50 | O7: 2015-05-14 | Q7: =Q3*N7 -> $311.25 | R7: =R3*N7 -> $300.00 | S7: =S3*N7 -> $275.00
A8: 24" | B8: $450.00 | C8: 2015-02-05 | E8: 350-450 | F8: 16"-24" | H8: $427.50 | I8: $450.00 | J8: $475.00 | M8: 200.00 | N8: 1.67 | O8: 2015-05-20 | Q8: =Q3*N8 -> $207.92 | R8: =R3*N8 -> $200.40 | S8: =S3*N8 -> $183.70
A9: 26" | B9: $950.00 | C9: 2015-02-25 | E9: 700-950 | F9: 25"-36" | H9: $902.50 | I9: $950.00 | J9: $1,000.00 | M9: 425.00 | N9: 3.54 | O9: 2015-07-23 | Q9: =Q3*N9 -> $440.73 | R9: =R3*N9 -> $424.80 | S9: =S3*N9 -> $389.40
A10: 33" | B10: $950.00 | C10: 2015-03-04 | E10: 700-950 | F10: 25"-36" | H10: $902.50 | I10: $950.00 | J10: $1,000.00 | M10: 400.00 | N10: 3.33 | O10: 2015-08-05 | Q10: =Q3*N10 -> $414.59 | R10: =R3*N10 -> $399.60 | S10: =S3*N10 -> $366.30
A11: 50" | B11: $2,350.00 | C11: 2015-04-09 | E11: 1900-2350 | F11: 49"-60" | H11: $2,232.50 | I11: $2,350.00 | J11: $2,400.00 | M11: 600.00 | N11: 5.00 | O11: 2015-08-05 | Q11: =Q3*N11 -> $622.50 | R11: =R3*N11 -> $600.00 | S11: =S3*N11 -> $550.00
A12: 31" | B12: $950.00 | C12: 2015-04-09 | E12: 700-950 | F12: 25"-36" | H12: $902.50 | I12: $950.00 | J12: $1,000.00 | M12: 300.00 | N12: 2.50 | O12: 2015-09-30 | Q12: =Q3*N12 -> $311.25 | R12: =R3*N12 -> $300.00 | S12: =S3*N12 -> $275.00
A13: 24" | B13: $450.00 | C13: 2015-04-25 | E13: 350-450 | F13: 16"-24" | H13: $427.50 | I13: $450.00 | J13: $475.00 | M13: 2800.00 | N13: 23.33 | O13: 2015-12-01 | Q13: =Q3*N13 -> $2,904.59 | R13: =R3*N13 -> $2,799.60 | S13: =S3*N13 -> $2,566.30
A14: 25" | B14: $450.00 | C14: 2015-05-07 | E14: 700-950 | F14: 25"-36" | H14: $427.50 | I14: $450.00 | J14: $475.00 | M14: 250.00 | N14: 2.08 | O14: 2015-12-09 | Q14: =Q3*N14 -> $258.96 | R14: =R3*N14 -> $249.60 | S14: =S3*N14 -> $228.80
A15: 20" | B15: $1,000.00 | C15: 2015-05-14 | E15: 350-450 | F15: 16"-24" | H15: $427.50 | I15: $450.00 | J15: $475.00 | L15: Total | M15: =SUM(M5:M14) -> 6425.00 | N15: =SUM(N5:N14) -> 53.53 | Q15: =SUM(Q5:Q14) -> $6,664.49 | R15: =SUM(R5:R14) -> $6,423.60 | S15: =SUM(S5:S14) -> $5,888.30
A16: 36" | B16: $950.00 | C16: 2015-06-24 | E16: 700-950 | F16: 25"-36" | H16: $902.50 | I16: $950.00 | J16: $1,000.00
A17: 33" | B17: $950.00 | C17: 2015-06-24 | E17: 700-950 | F17: 25"-36" | H17: $902.50 | I17: $950.00 | J17: $1,000.00
A18: 32" | B18: $950.00 | C18: 2015-06-24 | E18: 700-950 | F18: 25"-36" | H18: $902.50 | I18: $950.00 | J18: $1,000.00
A19: 20" | B19: $450.00 | C19: 2015-06-24 | E19: 350-450 | F19: 16"-24" | H19: $427.50 | I19: $450.00 | J19: $475.00
A20: 43" | B20: $1,875.00 | C20: 2015-06-24 | E20: 1500-1875 | F20: 37"-48" | H20: $1,781.25 | I20: $1,875.00 | J20: $1,900.00 | M20: Extra Costs | O20: Date
A21: 20" | B21: $450.00 | C21: 2015-07-23 | E21: 350-450 | F21: 16"-24" | H21: $427.50 | I21: $450.00 | J21: $475.00 | M21: 2437.00 | N21: crane | O21: 2015-07-30
A22: 28" | B22: $950.00 | C22: 2015-07-23 | E22: 700-950 | F22: 25"-36" | H22: $902.50 | I22: $950.00 | J22: $1,000.00 | M22: 2437.00 | N22: crane | O22: 2015-12-01
A23: 42" | B23: $1,875.00 | C23: 2015-07-23 | E23: 1500-1875 | F23: 37"-48" | H23: $1,781.25 | I23: $1,875.00 | J23: $1,900.00 | L23: Total | M23: =SUM(M21:M22) -> 4874.00
A24: 49" | B24: $2,350.00 | C24: 2015-07-30 | E24: 1900-2350 | F24: 49"-60" | H24: $2,232.50 | I24: $2,350.00 | J24: $2,400.00
A25: 62" | B25: $3,100.00 | C25: 2015-08-15 | E25: 3000-3600 | F25: 61"-72" | H25: $3,420.00 | I25: $3,600.00 | J25: $3,675.00
A26: 50" | B26: $2,350.00 | C26: 2015-08-26 | E26: 1900-2350 | F26: 49"-60" | H26: $2,232.50 | I26: $2,350.00 | J26: $2,400.00 | M26: Number of Trees
A27: 27" | B27: $950.00 | C27: 2015-08-26 | E27: 700-950 | F27: 25"-36" | H27: $902.50 | I27: $950.00 | J27: $1,000.00 | M27: 0 | N27: 15" and Under
A28: 26" | B28: $950.00 | C28: 2015-08-26 | E28: 700-950 | F28: 25"-36" | H28: $902.50 | I28: $950.00 | J28: $1,000.00 | M28: 10 | N28: 16"-24"
A29: 16" | B29: $450.00 | C29: 2015-09-11 | E29: 350-450 | F29: 16"-24" | H29: $427.50 | I29: $450.00 | J29: $475.00 | M29: 23 | N29: 25"-36"
A30: 28" | B30: $950.00 | C30: 2015-09-11 | E30: 700-950 | F30: 25"-36" | H30: $902.50 | I30: $950.00 | J30: $1,000.00 | M30: 8 | N30: 37"-48"
A31: 30" | B31: $950.00 | C31: 2015-09-11 | E31: 700-950 | F31: 25"-36" | H31: $902.50 | I31: $950.00 | J31: $1,000.00 | M31: 5 | N31: 49"-60"
A32: 41" | B32: $1,875.00 | C32: 2015-09-11 | E32: 1500-1875 | F32: 37"-48" | H32: $1,781.25 | I32: $1,875.00 | J32: $1,900.00 | M32: 1 | N32: 61"-72"
A33: 31" | B33: $950.00 | C33: 2015-09-11 | E33: 700-950 | F33: 25"-36" | H33: $902.50 | I33: $950.00 | J33: $1,000.00 | L33: Total | M33: =SUM(M27:M32) -> 47
A34: 40" | B34: $1,875.00 | C34: 2015-09-17 | E34: 1500-1875 | F34: 37"-48" | H34: $1,781.25 | I34: $1,875.00 | J34: $1,900.00
A35: 52" | B35: $2,350.00 | C35: 2015-10-01 | E35: 1900-2350 | F35: 49"-60" | H35: $2,232.50 | I35: $2,350.00 | J35: $2,400.00
A36: 38" | B36: $1,875.00 | C36: 2015-10-01 | E36: 1500-1875 | F36: 37"-48" | H36: $1,781.25 | I36: $1,875.00 | J36: $1,900.00
A37: 40" | B37: $1,875.00 | C37: 2015-10-01 | E37: 1500-1875 | F37: 37"-48" | H37: $1,781.25 | I37: $1,875.00 | J37: $1,900.00
A38: 42" | B38: $1,875.00 | C38: 2015-11-20 | E38: 1500-1875 | F38: 37"-48" | H38: $1,781.25 | I38: $1,875.00 | J38: $1,900.00
A39: 30"&22" | B39: $2,700.00 | C39: 2015-12-01 | E39: 350-450 700-950 | F39: 16"-24" 25"-36" | H39: $1,330.00 | I39: $1,400.00 | J39: $1,475.00
A40: 29" | B40: $950.00 | C40: 2015-12-01 | E40: 700-950 | F40: 25"-36" | H40: $902.50 | I40: $950.00 | J40: $1,000.00
A41: 27" | B41: $950.00 | C41: 2015-12-01 | E41: 700-950 | F41: 25"-36" | H41: $902.50 | I41: $950.00 | J41: $1,000.00
A42: 18" | B42: $450.00 | C42: 2015-12-03 | E42: 350-450 | F42: 16"-24" | H42: $427.50 | I42: $450.00 | J42: $475.00
A43: 41" | B43: $1,875.00 | C43: 2015-12-03 | E43: 1500-1875 | F43: 37"-48" | H43: $1,781.25 | I43: $1,875.00 | J43: $1,900.00
A44: 36" | B44: $950.00 | C44: 2015-12-04 | E44: 700-950 | F44: 25"-36" | H44: $902.50 | I44: $950.00 | J44: $1,000.00
A45: 27" | B45: $950.00 | C45: 2015-12-09 | E45: 700-950 | F45: 25"-36" | H45: $902.50 | I45: $950.00 | J45: $1,000.00
A46: 31" | B46: $950.00 | C46: 2015-12-09 | E46: 700-950 | F46: 25"-36" | H46: $902.50 | I46: $950.00 | J46: $1,000.00
A47: 29" | B47: $950.00 | C47: 2015-12-11 | E47: 700-950 | F47: 25"-36" | H47: $902.50 | I47: $950.00 | J47: $1,000.00
A48: 27" | B48: $950.00 | C48: 2015-12-11 | E48: 700-950 | F48: 25"-36" | H48: $902.50 | I48: $950.00 | J48: $1,000.00
A49: 51" | B49: $3,850.00 | C49: 2015-12-12 | E49: 1900-2350 | F49: 49"-60"
B50: =SUM(B4:B49) -> $59,050.00 | H50: =SUM(H4:H49) -> $51,157.50 | I50: =SUM(I4:I49) -> $53,850.00 | J50: $55,700.00
B52: Bid 2015 Comparison | H52: =H50+Q15 -> $57,821.99 | I52: =I50+R15 -> $60,273.60 | J52: =J50+S15 -> $61,588.30
